[Event "Live Chess"]
[Site "Chess.com"]
[Date "2024.06.02"]
[Round "-"]
[White "ACM42"]
[Black "bill77678"]
[Result "1/2-1/2"]
[WhiteElo "2159"]
[BlackElo "1840"]
[TimeControl "300"]
[EndTime "2:09:44 PDT"]
[Termination "Game drawn by agreement"]

1. e4 {[%clk 0:04:57]} 1... c6 {[%clk 0:04:59]} 2. d4 {[%clk 0:04:50.6]} 2... d5
{[%clk 0:04:58.5]} 3. e5 {[%clk 0:04:46]} 3... c5 {[%clk 0:04:57.8]} 4. c3
{[%clk 0:04:38.4]} 4... Nc6 {[%clk 0:04:55.9]} 5. Nf3 {[%clk 0:04:29.8]} 5...
cxd4 {[%clk 0:04:54.6]} 6. cxd4 {[%clk 0:04:28.7]} 6... Bg4 {[%clk 0:04:52.8]}
7. Be2 {[%clk 0:04:27.6]} 7... e6 {[%clk 0:04:51.8]} 8. Nc3 {[%clk 0:04:26]}
8... Nge7 {[%clk 0:04:50.7]} 9. O-O {[%clk 0:04:24.5]} 9... Nf5 {[%clk
0:04:49.5]} 10. Be3 {[%clk 0:04:23.7]} 10... Be7 {[%clk 0:04:44.9]} 11. a3
{[%clk 0:04:21]} 11... O-O {[%clk 0:04:43.5]} 12. b4 {[%clk 0:04:19.1]} 12...
Qb6 {[%clk 0:04:40.5]} 13. Na4 {[%clk 0:04:16.6]} 13... Qc7 {[%clk 0:04:34.4]}
14. h3 {[%clk 0:04:15.8]} 14... Bh5 {[%clk 0:04:32.6]} 15. Rc1 {[%clk
0:04:14.2]} 15... a6 {[%clk 0:04:22]} 16. g4 {[%clk 0:04:12.6]} 16... Nxe3
{[%clk 0:04:20.5]} 17. fxe3 {[%clk 0:04:12.5]} 17... Bg6 {[%clk 0:04:19.7]} 18.
Bd3 {[%clk 0:03:58.9]} 18... Bxd3 {[%clk 0:04:17.9]} 19. Qxd3 {[%clk 0:03:57.8]}
19... Rac8 {[%clk 0:04:13.5]} 20. Nc5 {[%clk 0:03:56.1]} 20... Rfd8 {[%clk
0:03:49.7]} 21. g5 {[%clk 0:03:54.1]} 21... Bxc5 {[%clk 0:03:41.4]} 22. Rxc5
{[%clk 0:03:52.3]} 22... b6 {[%clk 0:03:39.3]} 23. Rc3 {[%clk 0:03:41]} 23...
Qb7 {[%clk 0:03:31]} 24. Rfc1 {[%clk 0:03:37.2]} 24... Ne7 {[%clk 0:03:28.9]}
25. Nh4 {[%clk 0:03:26.7]} 25... Rxc3 {[%clk 0:03:24.6]} 26. Rxc3 {[%clk
0:03:25.3]} 26... Rc8 {[%clk 0:03:24.1]} 27. Qc2 {[%clk 0:03:22.4]} 27... Rxc3
{[%clk 0:03:21.1]} 28. Qxc3 {[%clk 0:03:21.3]} 28... Qc6 {[%clk 0:03:20.6]} 29.
Qxc6 {[%clk 0:03:16.3]} 29... Nxc6 {[%clk 0:03:20.5]} 30. Nf3 {[%clk 0:03:13.1]}
30... Ne7 {[%clk 0:03:16.6]} 31. Nh4 {[%clk 0:03:11.5]} 31... Kf8 {[%clk
0:03:12.6]} 32. Kf2 {[%clk 0:03:10.7]} 32... Ke8 {[%clk 0:03:11.5]} 33. Ke2
{[%clk 0:03:10]} 33... Kd7 {[%clk 0:03:10.6]} 34. Kd3 {[%clk 0:03:09.5]} 34...
Kc6 {[%clk 0:03:09.7]} 35. Kc3 {[%clk 0:03:08.5]} 35... a5 {[%clk 0:03:02.1]}
36. Kb3 {[%clk 0:03:06.8]} 36... axb4 {[%clk 0:02:59]} 37. Kxb4 {[%clk
0:03:05.9]} 37... b5 {[%clk 0:02:54.8]} 38. Ka5 {[%clk 0:03:01.9]} 38... Nc8
{[%clk 0:02:49.6]} 39. Nf3 {[%clk 0:02:55.4]} 39... Nb6 {[%clk 0:02:47.9]} 40.
g6 {[%clk 0:02:40.7]} 40... Nc4+ {[%clk 0:02:35.7]} 41. Kb4 {[%clk 0:02:38.2]}
41... hxg6 {[%clk 0:02:24]} 42. Ng5 {[%clk 0:02:36.1]} 42... Nxe3 {[%clk
0:02:22.8]} 43. Nxf7 {[%clk 0:02:35.1]} 43... Nc2+ {[%clk 0:02:18.7]} 44. Kc3
{[%clk 0:02:31.3]} 44... Nxa3 {[%clk 0:02:17.4]} 45. Ng5 {[%clk 0:02:20.4]}
45... Kd7 {[%clk 0:02:14]} 46. Nf3 {[%clk 0:02:19.5]} 46... Nc4 {[%clk
0:02:11.2]} 47. Kb4 {[%clk 0:02:16.8]} 47... Ne3 {[%clk 0:02:05.4]} 48. Kxb5
{[%clk 0:02:14.2]} 48... Nf5 {[%clk 0:02:03.1]} 49. Kc5 {[%clk 0:02:08.7]} 49...
Ke7 {[%clk 0:01:58]} 1/2-1/2

[Event "Live Chess"]
[Site "Chess.com"]
[Date "2024.06.02"]
[Round "-"]
[White "lateforthesky"]
[Black "Pandreq"]
[Result "1-0"]
[WhiteElo "2070"]
[BlackElo "1195"]
[TimeControl "300"]
[EndTime "2:10:04 PDT"]
[Termination "lateforthesky won on time"]

1. e4 {[%clk 0:04:57.2]} 1... Nf6 {[%clk 0:04:58]} 2. e5 {[%clk 0:04:53.8]} 2...
Nd5 {[%clk 0:04:57.4]} 3. c4 {[%clk 0:04:52.1]} 3... Nb6 {[%clk 0:04:56.3]} 4.
d4 {[%clk 0:04:51.7]} 4... d6 {[%clk 0:04:55.3]} 5. exd6 {[%clk 0:04:50.8]} 5...
exd6 {[%clk 0:04:54]} 6. Nc3 {[%clk 0:04:49.6]} 6... Be7 {[%clk 0:04:52.8]} 7.
Be3 {[%clk 0:04:45.2]} 7... O-O {[%clk 0:04:51.7]} 8. Rc1 {[%clk 0:04:44.1]}
8... Bf6 {[%clk 0:04:45.3]} 9. b3 {[%clk 0:04:41.4]} 9... Re8 {[%clk 0:04:43.5]}
10. Be2 {[%clk 0:04:37.9]} 10... Nc6 {[%clk 0:04:39]} 11. Nf3 {[%clk 0:04:35.3]}
11... Bf5 {[%clk 0:04:37]} 12. O-O {[%clk 0:04:31.8]} 12... Bg6 {[%clk
0:04:20.1]} 13. a4 {[%clk 0:04:05]} 13... Ne7 {[%clk 0:04:06.9]} 14. a5 {[%clk
0:04:01.1]} 14... Nd7 {[%clk 0:04:02.2]} 15. Re1 {[%clk 0:03:34.7]} 15... Nf5
{[%clk 0:03:59.8]} 16. Bf4 {[%clk 0:03:24.8]} 16... c5 {[%clk 0:03:36.5]} 17.
Bxd6 {[%clk 0:03:02.2]} 17... Nxd6 {[%clk 0:03:28]} 18. dxc5 {[%clk 0:02:59.2]}
18... Nxc5 {[%clk 0:03:16.9]} 19. Nd5 {[%clk 0:02:56.1]} 19... Nce4 {[%clk
0:03:05.6]} 20. c5 {[%clk 0:02:42.2]} 20... Nf5 {[%clk 0:02:51.5]} 21. Bb5
{[%clk 0:02:24]} 21... Re6 {[%clk 0:02:13.3]} 22. b4 {[%clk 0:01:42.6]} 22...
Ne7 {[%clk 0:01:32.5]} 23. Nxf6+ {[%clk 0:01:35.3]} 23... Nxf6 {[%clk
0:01:26.9]} 24. Qb3 {[%clk 0:01:09.2]} 24... Rxe1+ {[%clk 0:01:19.7]} 25. Rxe1
{[%clk 0:01:07.6]} 25... h6 {[%clk 0:01:12.5]} 26. Bc4 {[%clk 0:01:05.1]} 26...
a6 {[%clk 0:01:04.9]} 27. h3 {[%clk 0:01:03.1]} 27... Ned5 {[%clk 0:00:56.3]}
28. Ne5 {[%clk 0:00:56.6]} 28... Bh7 {[%clk 0:00:47.5]} 29. Rd1 {[%clk
0:00:52.5]} 29... b5 {[%clk 0:00:34]} 30. Bxd5 {[%clk 0:00:44]} 30... Nxd5
{[%clk 0:00:30.9]} 31. Qxd5 {[%clk 0:00:41.8]} 31... Qxd5 {[%clk 0:00:25.9]} 32.
Rxd5 {[%clk 0:00:41.7]} 32... Be4 {[%clk 0:00:20.2]} 33. Rd7 {[%clk 0:00:39.4]}
33... f6 {[%clk 0:00:14.8]} 34. Nf7 {[%clk 0:00:35.8]} 34... Bc2 {[%clk
0:00:10.7]} 35. Nd6 {[%clk 0:00:33.1]} 35... Bb3 {[%clk 0:00:08.4]} 36. c6
{[%clk 0:00:30.4]} 36... Be6 {[%clk 0:00:05.4]} 37. Re7 {[%clk 0:00:28.9]} 37...
Bf5 {[%clk 0:00:03.5]} 38. c7 {[%clk 0:00:27.6]} 38... g6 {[%clk 0:00:00.3]} 39.
Re8+ {[%clk 0:00:26.7]} 1-0

[Event "Live Chess"]
[Site "Chess.com"]
[Date "2024.06.02"]
[Round "-"]
[White "elephantgerrald"]
[Black "blunderabit"]
[Result "0-1"]
[WhiteElo "847"]
[BlackElo "1774"]
[TimeControl "300"]
[EndTime "2:10:09 PDT"]
[Termination "blunderabit won by checkmate"]

1. e4 {[%clk 0:04:36.8]} 1... c5 {[%clk 0:04:57.5]} 2. Nf3 {[%clk 0:04:35.9]}
2... d6 {[%clk 0:04:56.4]} 3. Nc3 {[%clk 0:04:34.8]} 3... Nf6 {[%clk 0:04:53.3]}
4. Bc4 {[%clk 0:04:31.4]} 4... a6 {[%clk 0:04:48.5]} 5. d3 {[%clk 0:04:25.1]}
5... e6 {[%clk 0:04:46.5]} 6. Be3 {[%clk 0:03:57]} 6... b5 {[%clk 0:04:44.1]} 7.
Bb3 {[%clk 0:03:50.4]} 7... d5 {[%clk 0:04:32.9]} 8. exd5 {[%clk 0:03:34.7]}
8... exd5 {[%clk 0:04:30.4]} 9. Nxd5 {[%clk 0:03:23.3]} 9... Nxd5 {[%clk
0:04:27.5]} 10. Bxd5 {[%clk 0:03:21.1]} 10... Qxd5 {[%clk 0:04:25.4]} 11. O-O
{[%clk 0:03:16]} 11... Bd6 {[%clk 0:04:15.4]} 12. Re1 {[%clk 0:03:14.2]} 12...
O-O {[%clk 0:04:14]} 13. Ng5 {[%clk 0:03:07.3]} 13... Bf5 {[%clk 0:04:01.2]} 14.
Qh5 {[%clk 0:03:01.6]} 14... Bg6 {[%clk 0:03:57.5]} 15. Qh4 {[%clk 0:02:54.6]}
15... Nd7 {[%clk 0:03:50.1]} 16. c4 {[%clk 0:02:38.6]} 16... Qf5 {[%clk
0:03:28]} 17. cxb5 {[%clk 0:02:31.4]} 17... axb5 {[%clk 0:03:25.5]} 18. g4
{[%clk 0:02:26]} 18... Qf6 {[%clk 0:03:17.5]} 19. f4 {[%clk 0:02:11.1]} 19... h6
{[%clk 0:03:13.1]} 20. Rf1 {[%clk 0:02:05.1]} 20... hxg5 {[%clk 0:03:03.2]} 21.
fxg5 {[%clk 0:02:03.7]} 21... Qe5 {[%clk 0:03:01.6]} 22. Bf4 {[%clk 0:02:00.5]}
22... Qd4+ {[%clk 0:02:56.6]} 23. Qf2 {[%clk 0:01:54.3]} 23... Qxf2+ {[%clk
0:02:46.8]} 24. Rxf2 {[%clk 0:01:51.6]} 24... Bxf4 {[%clk 0:02:45.5]} 25. Rxf4
{[%clk 0:01:49.2]} 25... Ne5 {[%clk 0:02:42.4]} 26. h4 {[%clk 0:01:45]} 26...
Nxd3 {[%clk 0:02:39]} 27. Rf3 {[%clk 0:01:33.6]} 27... c4 {[%clk 0:02:33.9]} 28.
h5 {[%clk 0:01:29.5]} 28... Be4 {[%clk 0:02:31.3]} 29. Rff1 {[%clk 0:01:22.2]}
29... Rae8 {[%clk 0:02:24.2]} 30. h6 {[%clk 0:01:16.6]} 30... Bc6 {[%clk
0:02:16.8]} 31. Kh2 {[%clk 0:01:10.2]} 31... Re2+ {[%clk 0:02:13.1]} 32. Kg3
{[%clk 0:01:08.2]} 32... Rg2+ {[%clk 0:02:08.5]} 33. Kh4 {[%clk 0:01:04.4]}
33... Rxb2 {[%clk 0:01:48.1]} 34. hxg7 {[%clk 0:00:56.4]} 34... Kxg7 {[%clk
0:01:45.9]} 35. Kh5 {[%clk 0:00:53.5]} 35... Rg2 {[%clk 0:01:43.2]} 36. Rf6
{[%clk 0:00:43]} 36... Rh2# {[%clk 0:01:35.3]} 0-1

[Event "Live Chess"]
[Site "Chess.com"]
[Date "2024.06.02"]
[Round "-"]
[White "oscalik"]
[Black "Zhevzh1k7"]
[Result "1-0"]
[WhiteElo "2246"]
[BlackElo "1113"]
[TimeControl "300"]
[EndTime "2:10:33 PDT"]
[Termination "oscalik won by resignation"]

1. e4 {[%clk 0:04:59.2]} 1... c6 {[%clk 0:04:57.7]} 2. Nc3 {[%clk 0:04:57.9]}
2... d5 {[%clk 0:04:56]} 3. Qf3 {[%clk 0:04:57.5]} 3... dxe4 {[%clk 0:04:48.9]}
4. Nxe4 {[%clk 0:04:56.7]} 4... Nd7 {[%clk 0:04:46.6]} 5. Qe3 {[%clk 0:04:55.9]}
5... e5 {[%clk 0:04:41.8]} 6. Bc4 {[%clk 0:04:54.4]} 6... Ngf6 {[%clk
0:04:37.6]} 7. d3 {[%clk 0:04:52.5]} 7... Bb4+ {[%clk 0:04:33.5]} 8. Bd2 {[%clk
0:04:51.2]} 8... Bxd2+ {[%clk 0:04:31.9]} 9. Nxd2 {[%clk 0:04:50]} 9... O-O
{[%clk 0:04:28]} 10. O-O-O {[%clk 0:04:46.8]} 10... Qb6 {[%clk 0:04:25.1]} 11.
Kb1 {[%clk 0:04:43]} 11... Qxe3 {[%clk 0:04:21.6]} 12. fxe3 {[%clk 0:04:42.4]}
12... Nb6 {[%clk 0:04:18.4]} 13. Bb3 {[%clk 0:04:41.2]} 13... Bd7 {[%clk
0:04:08.2]} 14. Ngf3 {[%clk 0:04:40.1]} 14... Rfe8 {[%clk 0:04:05.5]} 15. e4
{[%clk 0:04:35.1]} 15... Bg4 {[%clk 0:04:03.3]} 16. h3 {[%clk 0:04:33.1]} 16...
Bxf3 {[%clk 0:03:59.2]} 17. Nxf3 {[%clk 0:04:33]} 17... Rad8 {[%clk 0:03:50.3]}
18. g4 {[%clk 0:04:31.2]} 18... a5 {[%clk 0:03:43.6]} 19. a3 {[%clk 0:04:30]}
19... h6 {[%clk 0:03:31.1]} 20. Rhg1 {[%clk 0:04:26.7]} 20... a4 {[%clk
0:03:21.6]} 21. Ba2 {[%clk 0:04:25.3]} 21... c5 {[%clk 0:03:17.4]} 22. g5 {[%clk
0:04:20.2]} 22... hxg5 {[%clk 0:03:17.1]} 23. Nxg5 {[%clk 0:04:20.1]} 23... c4
{[%clk 0:02:44.8]} 24. Bxc4 {[%clk 0:04:18.4]} 24... Nxc4 {[%clk 0:02:43.3]} 25.
dxc4 {[%clk 0:04:18.3]} 25... Rxd1+ {[%clk 0:02:41.3]} 26. Rxd1 {[%clk
0:04:17.2]} 26... Nh7 {[%clk 0:02:29.7]} 27. Nxh7 {[%clk 0:04:15.3]} 27... Kxh7
{[%clk 0:02:28.6]} 28. Rd7 {[%clk 0:04:15.2]} 28... Rc8 {[%clk 0:02:23.6]} 29.
b3 {[%clk 0:04:10.8]} 29... b6 {[%clk 0:02:11.8]} 30. Rxf7 {[%clk 0:04:08.5]}
30... Rd8 {[%clk 0:02:10.6]} 31. Rf5 {[%clk 0:04:02.2]} 31... Re8 {[%clk
0:02:03.8]} 32. Kb2 {[%clk 0:04:00.3]} 32... Kg6 {[%clk 0:02:01.8]} 33. Kc3
{[%clk 0:03:59.1]} 33... Kh6 {[%clk 0:01:58.2]} 34. Kb4 {[%clk 0:03:55.5]} 34...
g6 {[%clk 0:01:56.6]} 35. Rf6 {[%clk 0:03:55]} 35... Rb8 {[%clk 0:01:50.9]} 36.
h4 {[%clk 0:03:49.7]} 36... Kg7 {[%clk 0:01:48.5]} 37. Re6 {[%clk 0:03:47.5]}
37... Kf7 {[%clk 0:01:44.8]} 38. Rc6 {[%clk 0:03:45.6]} 38... Rh8 {[%clk
0:01:37.4]} 39. Rxb6 {[%clk 0:03:40.3]} 39... Rxh4 {[%clk 0:01:35.5]} 40. bxa4
{[%clk 0:03:32.6]} 40... g5 {[%clk 0:01:27.5]} 41. Kc5 {[%clk 0:03:28.5]} 41...
g4 {[%clk 0:01:20.4]} 42. Rb1 {[%clk 0:03:21.6]} 42... g3 {[%clk 0:01:17.2]} 43.
a5 {[%clk 0:03:18.7]} 43... Rh2 {[%clk 0:01:06.9]} 44. Rg1 {[%clk 0:03:12.9]}
44... g2 {[%clk 0:01:04.4]} 45. a6 {[%clk 0:03:10.4]} 45... Rh6 {[%clk
0:00:55.4]} 46. Kb5 {[%clk 0:03:05]} 46... Rh2 {[%clk 0:00:50.4]} 47. a7 {[%clk
0:03:03.6]} 47... Rh8 {[%clk 0:00:48.4]} 48. Rxg2 {[%clk 0:03:02.3]} 48... Ra8
{[%clk 0:00:47.9]} 49. Kb6 {[%clk 0:03:01.3]} 49... Ke7 {[%clk 0:00:46.5]} 50.
Rg7+ {[%clk 0:02:59.2]} 50... Kd6 {[%clk 0:00:44.5]} 51. Kb7 {[%clk 0:02:58]}
51... Rxa7+ {[%clk 0:00:39.7]} 1-0

[Event "Live Chess"]
[Site "Chess.com"]
[Date "2024.06.02"]
[Round "-"]
[White "jellhhggffhjjjjjj"]
[Black "GoldsmanB"]
[Result "0-1"]
[WhiteElo "479"]
[BlackElo "1103"]
[TimeControl "300"]
[EndTime "2:10:58 PDT"]
[Termination "GoldsmanB won - game abandoned"]

1. b3 {[%clk 0:04:54.3]} 1... e5 {[%clk 0:04:58.6]} 2. Bb2 {[%clk 0:04:53]} 2...
Nc6 {[%clk 0:04:54.3]} 3. e3 {[%clk 0:04:51.8]} 3... d5 {[%clk 0:04:52.2]} 4. c4
{[%clk 0:04:49.1]} 4... Nf6 {[%clk 0:04:47.5]} 5. Nc3 {[%clk 0:04:47.5]} 5... d4
{[%clk 0:04:45]} 6. Nce2 {[%clk 0:04:45.2]} 6... d3 {[%clk 0:04:43]} 7. Nc3
{[%clk 0:04:41]} 7... Bb4 {[%clk 0:04:40.2]} 8. a3 {[%clk 0:04:30.8]} 8... Bxc3
{[%clk 0:04:38.3]} 9. dxc3 {[%clk 0:04:29.6]} 9... e4 {[%clk 0:04:33.5]} 10. b4
{[%clk 0:04:23.9]} 10... O-O {[%clk 0:04:31.5]} 11. Qb3 {[%clk 0:04:22]} 11...
d2+ {[%clk 0:04:27.1]} 12. Kd1 {[%clk 0:04:20]} 12... Be6 {[%clk 0:04:22.8]} 13.
f3 {[%clk 0:04:08.2]} 13... exf3 {[%clk 0:04:20.4]} 14. Nxf3 {[%clk 0:04:07]}
14... Bg4 {[%clk 0:04:18.6]} 15. Be2 {[%clk 0:04:05.5]} 15... Bxf3 {[%clk
0:04:17.5]} 16. Bxf3 {[%clk 0:04:04.3]} 16... Re8 {[%clk 0:04:14.9]} 17. e4
{[%clk 0:04:01.1]} 17... Nxe4 {[%clk 0:04:11]} 18. Bxe4 {[%clk 0:03:59]} 18...
Rxe4 {[%clk 0:04:09.2]} 0-1

[Event "Live Chess"]
[Site "Chess.com"]
[Date "2024.06.02"]
[Round "-"]
[White "TigerTank70"]
[Black "MaximKovalenko83"]
[Result "0-1"]
[WhiteElo "2219"]
[BlackElo "2168"]
[TimeControl "300"]
[EndTime "2:11:12 PDT"]
[Termination "MaximKovalenko83 won by resignation"]

1. e4 {[%clk 0:04:53.3]} 1... c6 {[%clk 0:04:58.6]} 2. d4 {[%clk 0:04:51.4]}
2... d5 {[%clk 0:04:58.5]} 3. e5 {[%clk 0:04:50.2]} 3... Bf5 {[%clk 0:04:56.6]}
4. Nc3 {[%clk 0:04:48.9]} 4... e6 {[%clk 0:04:55.9]} 5. g4 {[%clk 0:04:47.9]}
5... Bg6 {[%clk 0:04:54.3]} 6. Nge2 {[%clk 0:04:40.5]} 6... c5 {[%clk
0:04:50.5]} 7. Nf4 {[%clk 0:04:38.4]} 7... cxd4 {[%clk 0:04:48.6]} 8. Nxg6
{[%clk 0:04:31.2]} 8... hxg6 {[%clk 0:04:36.4]} 9. Qxd4 {[%clk 0:04:30]} 9...
Nc6 {[%clk 0:04:34.9]} 10. Bb5 {[%clk 0:04:28.9]} 10... Qc7 {[%clk 0:04:29.8]}
11. Bf4 {[%clk 0:04:22.9]} 11... a6 {[%clk 0:04:20.3]} 12. Bxc6+ {[%clk
0:04:21.5]} 12... Qxc6 {[%clk 0:04:19.3]} 13. O-O-O {[%clk 0:04:19.4]} 13... Bc5
{[%clk 0:04:15.8]} 14. Qd2 {[%clk 0:04:15]} 14... Ne7 {[%clk 0:04:13.9]} 15. h4
{[%clk 0:04:12.5]} 15... Bb4 {[%clk 0:04:08.1]} 16. Rh3 {[%clk 0:04:07.4]} 16...
Rc8 {[%clk 0:04:01.1]} 17. Qd4 {[%clk 0:03:52.8]} 17... Qc4 {[%clk 0:03:47]} 18.
a3 {[%clk 0:03:16.3]} 18... Ba5 {[%clk 0:03:32.7]} 19. Qxc4 {[%clk 0:02:51.6]}
19... Rxc4 {[%clk 0:03:30.6]} 20. Ne2 {[%clk 0:02:49.9]} 20... Kd7 {[%clk
0:03:22.1]} 21. b3 {[%clk 0:02:46.9]} 21... Re4 {[%clk 0:03:19.3]} 22. Re3
{[%clk 0:02:16]} 22... Rxe3 {[%clk 0:03:18.1]} 23. Bxe3 {[%clk 0:02:12.8]} 23...
Rxh4 {[%clk 0:03:16.3]} 24. b4 {[%clk 0:02:11.4]} 24... Bc7 {[%clk 0:03:14.5]}
25. f3 {[%clk 0:02:08.6]} 25... Bxe5 {[%clk 0:03:07.6]} 26. c4 {[%clk
0:02:04.7]} 26... Rh2 {[%clk 0:03:03.9]} 27. Kd2 {[%clk 0:01:56.4]} 27... Bb2
{[%clk 0:02:56]} 28. Bf4 {[%clk 0:01:43]} 28... Rg2 {[%clk 0:02:50.3]} 29. a4
{[%clk 0:01:38.5]} 29... dxc4 {[%clk 0:02:44.3]} 30. Kc2+ {[%clk 0:01:18.6]}
30... Nd5 {[%clk 0:02:42.5]} 31. Kxb2 {[%clk 0:01:17.3]} 31... Rxe2+ {[%clk
0:02:40.9]} 32. Ka3 {[%clk 0:01:15.3]} 32... b5 {[%clk 0:02:36.8]} 0-1

[Event "Live Chess"]
[Site "Chess.com"]
[Date "2024.06.02"]
[Round "-"]
[White "chessgoatpawel"]
[Black "AlanBstard10"]
[Result "1-0"]
[WhiteElo "2083"]
[BlackElo "1229"]
[TimeControl "300"]
[EndTime "2:11:21 PDT"]
[Termination "chessgoatpawel won by resignation"]

1. e4 {[%clk 0:04:51.7]} 1... c5 {[%clk 0:04:58.8]} 2. Nf3 {[%clk 0:04:48.5]}
2... d6 {[%clk 0:04:58]} 3. Bb5+ {[%clk 0:04:45.2]} 3... Bd7 {[%clk 0:04:56.2]}
4. Bxd7+ {[%clk 0:04:43.3]} 4... Qxd7 {[%clk 0:04:55.8]} 5. O-O {[%clk
0:04:42.6]} 5... Nf6 {[%clk 0:04:54.9]} 6. Re1 {[%clk 0:04:40.9]} 6... a6 {[%clk
0:04:54.1]} 7. c3 {[%clk 0:04:38.9]} 7... g6 {[%clk 0:04:53.3]} 8. d4 {[%clk
0:04:37.1]} 8... cxd4 {[%clk 0:04:51.8]} 9. cxd4 {[%clk 0:04:37]} 9... Bg7
{[%clk 0:04:50.8]} 10. Nc3 {[%clk 0:04:36.4]} 10... O-O {[%clk 0:04:49.1]} 11.
e5 {[%clk 0:04:25.3]} 11... dxe5 {[%clk 0:04:46.9]} 12. dxe5 {[%clk 0:04:25.2]}
12... Qxd1 {[%clk 0:04:45.6]} 13. Rxd1 {[%clk 0:04:23.3]} 13... Nfd7 {[%clk
0:04:38]} 14. Bf4 {[%clk 0:04:10.4]} 14... e6 {[%clk 0:04:35.1]} 15. Ne4 {[%clk
0:04:05.9]} 15... Rd8 {[%clk 0:04:22.2]} 16. Bg5 {[%clk 0:04:03.2]} 16... Re8
{[%clk 0:04:18.6]} 17. Nd6 {[%clk 0:04:01.1]} 17... h6 {[%clk 0:03:54.3]} 18.
Bxh6 {[%clk 0:03:52.2]} 18... Bxh6 {[%clk 0:03:52.9]} 19. Nxe8 {[%clk
0:03:50.7]} 19... Kf8 {[%clk 0:03:46.2]} 20. Nc7 {[%clk 0:03:48.6]} 20... Ra7
{[%clk 0:03:45.6]} 21. Rac1 {[%clk 0:03:44.7]} 21... b5 {[%clk 0:03:43.3]} 22.
Rc2 {[%clk 0:03:33.7]} 22... Bg7 {[%clk 0:03:19]} 23. b3 {[%clk 0:03:22.2]}
23... Ke7 {[%clk 0:03:18.1]} 24. a4 {[%clk 0:03:10.3]} 24... Nxe5 {[%clk
0:03:17]} 25. axb5 {[%clk 0:03:04]} 25... Nxf3+ {[%clk 0:03:14.5]} 26. gxf3
{[%clk 0:03:03.9]} 26... Rb7 {[%clk 0:03:05.9]} 27. bxa6 {[%clk 0:03:01.5]}
27... Rxb3 {[%clk 0:03:02.7]} 28. a7 {[%clk 0:02:59.9]} 1-0

[Event "Live Chess"]
[Site "Chess.com"]
[Date "2024.06.02"]
[Round "-"]
[White "Tatarinov_Maxim"]
[Black "WorcesterYork"]
[Result "1/2-1/2"]
[WhiteElo "2275"]
[BlackElo "2471"]
[TimeControl "300"]
[EndTime "2:11:22 PDT"]
[Termination "Game drawn by stalemate"]

1. Nf3 {[%clk 0:04:56.7]} 1... c5 {[%clk 0:04:59.9]} 2. g3 {[%clk 0:04:55.3]}
2... Nc6 {[%clk 0:04:59.4]} 3. Bg2 {[%clk 0:04:53.9]} 3... g6 {[%clk 0:04:59.1]}
4. O-O {[%clk 0:04:52.7]} 4... Bg7 {[%clk 0:04:58.7]} 5. c4 {[%clk 0:04:52.1]}
5... d6 {[%clk 0:04:57.8]} 6. Nc3 {[%clk 0:04:51.4]} 6... Bxc3 {[%clk
0:04:56.9]} 7. bxc3 {[%clk 0:04:50.2]} 7... Qd7 {[%clk 0:04:56.4]} 8. Rb1 {[%clk
0:04:46]} 8... b6 {[%clk 0:04:55.7]} 9. d3 {[%clk 0:04:45]} 9... Bb7 {[%clk
0:04:55]} 10. e4 {[%clk 0:04:39.6]} 10... h6 {[%clk 0:04:54]} 11. Re1 {[%clk
0:04:36.4]} 11... e6 {[%clk 0:04:49.2]} 12. e5 {[%clk 0:04:31.4]} 12... Nxe5
{[%clk 0:04:45.7]} 13. Nxe5 {[%clk 0:04:29.8]} 13... dxe5 {[%clk 0:04:45.6]} 14.
Rxe5 {[%clk 0:04:24.5]} 14... Bxg2 {[%clk 0:04:44.3]} 15. Kxg2 {[%clk
0:04:23.8]} 15... Ne7 {[%clk 0:04:41.4]} 16. Qf3 {[%clk 0:04:14.5]} 16... Qc6
{[%clk 0:04:39.4]} 17. d4 {[%clk 0:03:44]} 17... Qxf3+ {[%clk 0:04:38]} 18. Kxf3
{[%clk 0:03:42.8]} 18... Nc6 {[%clk 0:04:36.9]} 19. Re4 {[%clk 0:03:37]} 19...
O-O-O {[%clk 0:04:28.2]} 20. dxc5 {[%clk 0:03:34.6]} 20... bxc5 {[%clk
0:04:28.1]} 21. Be3 {[%clk 0:03:21]} 21... Rd3 {[%clk 0:04:26.5]} 22. Ke2 {[%clk
0:03:17.9]} 22... Rxc3 {[%clk 0:04:25.3]} 23. Bxc5 {[%clk 0:03:17.1]} 23... Rd8
{[%clk 0:04:20.2]} 24. Rb2 {[%clk 0:03:02.5]} 24... e5 {[%clk 0:04:18]} 25. Rd2
{[%clk 0:02:22.9]} 25... f5 {[%clk 0:03:59.5]} 26. Rh4 {[%clk 0:02:11.9]} 26...
h5 {[%clk 0:03:56.3]} 27. Rxd8+ {[%clk 0:02:07.3]} 27... Kxd8 {[%clk 0:03:55.4]}
28. Kd2 {[%clk 0:02:06.7]} 28... Rf3 {[%clk 0:03:54]} 29. Ke2 {[%clk 0:02:05.9]}
29... e4 {[%clk 0:03:50.7]} 30. Rf4 {[%clk 0:01:54.2]} 30... Rc3 {[%clk
0:03:49.3]} 31. f3 {[%clk 0:01:37.1]} 31... Rxc4 {[%clk 0:03:48.2]} 32. Be3
{[%clk 0:01:35.8]} 32... Rc2+ {[%clk 0:03:28.1]} 33. Kd1 {[%clk 0:01:33.2]}
33... Rxh2 {[%clk 0:03:26.2]} 34. fxe4 {[%clk 0:01:31.8]} 34... fxe4 {[%clk
0:03:23.3]} 35. Rxe4 {[%clk 0:01:30.7]} 35... Rxa2 {[%clk 0:03:22.3]} 36. Re6
{[%clk 0:01:29.5]} 36... Kd7 {[%clk 0:03:21.8]} 37. Rxg6 {[%clk 0:01:27.8]}
37... Rg2 {[%clk 0:03:20.2]} 38. Rg7+ {[%clk 0:01:21.5]} 38... Ke6 {[%clk
0:03:19]} 39. Bxa7 {[%clk 0:01:19.6]} 39... Nxa7 {[%clk 0:03:16]} 40. Rxa7
{[%clk 0:01:19.5]} 40... Rxg3 {[%clk 0:03:15.1]} 41. Ke2 {[%clk 0:01:19.2]}
41... h4 {[%clk 0:03:13.9]} 42. Kf2 {[%clk 0:01:18.3]} 42... Kf5 {[%clk
0:03:10.9]} 43. Rh7 {[%clk 0:01:16.2]} 43... Kg4 {[%clk 0:03:09.7]} 44. Rg7+
{[%clk 0:01:15.3]} 44... Kh3 {[%clk 0:03:09.1]} 45. Rh7 {[%clk 0:01:05]} 45...
Ra3 {[%clk 0:03:07.9]} 46. Kg1 {[%clk 0:01:00.4]} 46... Ra1+ {[%clk 0:03:06.4]}
47. Kf2 {[%clk 0:00:59.8]} 47... Ra4 {[%clk 0:03:04.5]} 48. Kg1 {[%clk
0:00:55.7]} 48... Rf4 {[%clk 0:03:03.3]} 49. Ra7 {[%clk 0:00:51.5]} 49... Rg4+
{[%clk 0:03:02.1]} 50. Kh1 {[%clk 0:00:50]} 50... Rg3 {[%clk 0:02:57.4]} 51. Ra1
{[%clk 0:00:48.6]} 51... Kg4 {[%clk 0:02:54.4]} 52. Rg1 {[%clk 0:00:41.1]} 52...
Kf3 {[%clk 0:02:51.4]} 53. Rf1+ {[%clk 0:00:40.4]} 53... Ke4 {[%clk 0:02:49.1]}
54. Rg1 {[%clk 0:00:38.5]} 54... Kf4 {[%clk 0:02:46.2]} 55. Rf1+ {[%clk
0:00:37.7]} 55... Kg5 {[%clk 0:02:41.3]} 56. Rg1 {[%clk 0:00:36.6]} 56... Kg4
{[%clk 0:02:40.8]} 57. Rxg3+ {[%clk 0:00:32.5]} 57... hxg3 {[%clk 0:02:38.5]}
58. Kg2 {[%clk 0:00:31.5]} 58... Kf4 {[%clk 0:02:37.6]} 59. Kg1 {[%clk
0:00:30.7]} 59... Kf3 {[%clk 0:02:36.2]} 60. Kf1 {[%clk 0:00:29.9]} 60... g2+
{[%clk 0:02:34.6]} 61. Kg1 {[%clk 0:00:28.6]} 61... Kg3 {[%clk 0:02:34.5]}
1/2-1/2